bitfinex/quotes_SOLUSD_20251214
["timestamp","ask_amount","ask_price","bid_price","bid_amount"]
[1765723675699,0.66,130.91,130.88,0.71]
[1765723675889,0.66,130.91,130.87,0.28432314]
[1765723676096,0.66,130.91,130.88,0.65]
[1765723676290,0.66,130.91,130.88,8.29018738]
[1765723676489,0.66,130.91,130.87,7.64095684]
[1765723676490,8.29886483,130.91,130.87,7.64095684]
[1765723676700,8.29886483,130.91,130.87,8.29095684]
[1765723677016,0.71,130.9,130.87,8.29095684]
[1765723678109,8.3494703,130.9,130.87,7.64095684]
[1765723678802,8.3494703,130.9,130.87,8.29095684]
[1765723684007,0.71,130.9,130.87,8.29095684]
[1765723684322,112.94846967,130.92,130.88,0.65]
[1765723684635,0.71,130.91,130.88,0.65]
[1765723684806,0.71,130.91,130.87,7.64095684]
[1765723685003,0.71,130.91,130.87,8.29095684]
[1765723685207,0.71,130.91,130.88,0.65]
[1765723685806,8.34885253,130.91,130.88,0.65]
[1765723687630,112.23851392,130.92,130.88,8.29034459]
[1765723687805,112.94851392,130.92,130.88,8.29034459]
[1765723687995,112.23851392,130.92,130.88,8.29034459]
[1765723688198,0.71,130.91,130.88,8.29034459]
[1765723689134,8.34894225,130.91,130.88,8.29034459]
[1765723689309,7.63894225,130.91,130.87,7.64096946]
[1765723689510,8.34894225,130.91,130.87,8.29096946]
[1765723689725,8.34894225,130.91,130.88,0.65]
[1765723690328,104.6,130.92,130.88,8.29041975]
[1765723690530,105.31,130.92,130.88,8.29041975]
[1765723690727,0.71,130.91,130.88,8.29041975]
[1765723691031,0.71,130.91,130.86,0.65]
[1765723691216,8.34924709,130.91,130.87,0.65]
[1765723693013,8.34924709,130.91,130.87,8.29086526]
[1765723693215,104.6,130.92,130.87,8.29086526]
[1765723693417,105.31,130.92,130.88,0.65]
[1765723694112,104.6,130.92,130.89,7.64000305]
[1765723694638,8.36,130.93,130.9,0.65]
[1765723696839,8.36,130.93,130.88,19.10039771]
[1765723696840,0.71,130.92,130.88,8.29033768]
[1765723697139,0.21,130.92,130.89,8.28997716]
[1765723697335,15.99774703,130.93,130.89,8.28997716]
[1765723699248,16.21774703,130.93,130.89,8.28997716]
[1765723699655,8.36,130.93,130.9,0.65]
[1765723700335,8.58,130.93,130.9,0.65]
[1765723700552,16.21770695,130.93,130.89,8.28997716]
[1765723700927,0.22,130.92,130.89,8.28997716]
[1765723701326,15.99770695,130.93,130.89,8.28997716]
[1765723701654,16.21770695,130.93,130.89,8.28997716]
[1765723702028,15.99770695,130.93,130.89,7.63997716]
[1765723702233,8.36,130.93,130.9,0.65]
[1765723702534,8.58,130.93,130.9,0.65]
[1765723703258,58.36,130.93,130.9,0.65]
[1765723703464,65.99768336,130.93,130.9,0.65]
[1765723703824,58.36,130.93,130.9,0.65]
[1765723704160,58.36,130.93,130.9,8.28930076]
[1765723704452,65.99779946,130.93,130.9,8.28930076]
[1765723704628,66.21779946,130.93,130.9,8.28930076]
[1765723706347,58.36,130.93,130.9,8.28930076]
[1765723706541,58.36,130.93,130.91,0.66]
[1765723706943,58.36,130.93,130.9,8.29930076]
[1765723708241,58.36,130.93,130.91,0.66]
[1765723708558,58.58,130.93,130.9,8.29930076]
[1765723708763,66.21774016,130.93,130.9,8.29930076]
[1765723709466,15.99774016,130.93,130.88,0.28432314]
[1765723710168,8.36,130.93,130.88,0.28432314]
[1765723710581,8.36,130.93,130.89,26.74001069]
[1765723711462,8.36,130.93,130.9,0.66]
[1765723712483,8.36,130.93,130.91,7.63883584]
[1765723713780,0.2,130.94,130.92,0.66]
[1765723714382,0.2,130.94,130.93,7.63766898]
[1765723714749,0.2,130.94,130.93,8.58199212]
[1765723717680,0.2,130.94,130.93,17.39193704]
[1765723718380,0.2,130.94,130.93,30.43902824]
[1765723720962,0.2,130.94,130.93,20.68476018]
[1765723721180,0.2,130.94,130.92,7.63813865]
[1765723721685,0.2,130.94,130.92,8.29813865]
[1765723721980,0.2,130.94,130.9,7.63932144]
[1765723721981,8.54711286,130.94,130.9,7.63932144]
[1765723722183,0.71,130.93,130.9,8.29932144]
[1765723722562,0.71,130.93,130.9,7.63932144]
[1765723724285,0.71,130.93,130.89,26.73936896]
[1765723724488,0.71,130.93,130.9,0.66]
[1765723724889,0.91,130.94,130.9,0.94432314]
[1765723725269,0.91,130.94,130.91,0.66]
[1765723725670,0.2,130.94,130.91,0.66]
[1765723726670,0.2,130.94,130.92,7.63825236]
[1765723726869,0.91,130.94,130.91,7.6387486]
[1765723727390,0.91,130.94,130.91,8.2987486]
[1765723727765,0.2,130.94,130.92,0.66]
[1765723727968,0.2,130.94,130.92,0.94432314]
[1765723728494,0.2,130.94,130.93,0.66]
[1765723728988,0.2,130.94,130.93,8.29766898]
[1765723729795,0.2,130.94,130.92,7.92236275]
[1765723729976,0.91,130.94,130.92,7.92236275]
[1765723730175,0.2,130.94,130.93,7.63766898]
[1765723731595,0.91,130.94,130.92,7.63800462]
[1765723732694,0.91,130.94,130.91,7.63847045]
[1765723732903,0.71,130.93,130.91,7.63847045]
[1765723733302,0.71,130.93,130.9,8.29915426]
[1765723733605,0.71,130.93,130.9,7.63915426]
[1765723734988,0.71,130.93,130.9,8.29915426]
[1765723736603,0.71,130.93,130.9,7.63915426]
[1765723736905,7.83715321,130.94,130.91,8.29875375]
[1765723737103,8.51715321,130.94,130.91,8.29875375]
[1765723737476,8.51715321,130.94,130.91,7.63875375]
[1765723739599,8.51715321,130.94,130.9,8.29915731]
[1765723740997,0.68,130.93,130.9,7.63915731]
[1765723741195,0.68,130.93,130.9,8.29915731]
[1765723741394,0.68,130.93,130.9,7.63915731]
[1765723742096,0.68,130.93,130.9,8.29915731]
[1765723742410,0.88,130.94,130.91,8.29875397]
[1765723743201,0.2,130.94,130.91,7.63875397]
[1765723743409,0.2,130.94,130.91,8.29875397]
[1765723743614,0.88,130.94,130.91,8.29875397]
[1765723747321,0.68,130.93,130.87,32.14911975]
[1765723747506,9.04,130.93,130.89,7.63964555]
[1765723747997,0.68,130.92,130.89,7.63964555]
[1765723748328,0.68,130.92,130.89,8.29964555]
[1765723748696,0.68,130.92,130.87,0.66]
[1765723749419,8.31878958,130.92,130.88,7.64057881]
[1765723749624,8.31878958,130.92,130.87,8.30094392]
[1765723749810,0.68,130.91,130.87,8.30094392]
[1765723750341,0.68,130.91,130.86,7.64154031]
[1765723750802,0.68,130.91,130.86,8.30154031]
[1765723751323,7.6394194,130.9,130.86,8.30154031]
[1765723751628,0.68,130.89,130.86,8.30154031]
[1765723752298,8.32005302,130.89,130.84,7.64257279]
[1765723752504,8.32005302,130.89,130.83,0.66]
[1765723752704,0.68,130.88,130.83,0.66]
[1765723753023,8.36,130.87,130.83,0.66]
[1765723753200,8.36,130.87,130.83,8.30314293]
[1765723753405,9.04,130.87,130.83,8.30314293]
[1765723753606,9.04,130.87,130.84,0.66]
[1765723754515,16.68125459,130.87,130.84,0.66]
[1765723755825,8.36,130.87,130.84,0.66]
[1765723756030,0.68,130.89,130.84,0.66]
[1765723756402,15.9997962,130.9,130.85,26.74818493]
[1765723756403,8.36,130.9,130.85,26.74818493]
[1765723757032,9.04,130.9,130.86,0.66]
[1765723757333,0.68,130.89,130.85,8.30233855]
[1765723758528,8.32039269,130.89,130.85,8.30233855]
[1765723758939,0.68,130.88,130.85,8.30233855]
[1765723760221,8.3207355,130.88,130.84,8.30292265]
[1765723760699,0.68,130.87,130.84,8.30292265]
[1765723764210,8.3207355,130.88,130.85,0.66]
[1765723764534,7.64023682,130.89,130.85,0.66]
[1765723764837,9.04,130.9,130.85,0.66]
[1765723766022,9.04,130.9,130.86,7.64175454]
[1765723766426,9.04,130.9,130.87,0.68]
[1765723767731,8.36,130.9,130.87,0.68]
[1765723767932,9.03,130.9,130.87,8.32114167]
[1765723768139,0.67,130.89,130.86,7.64161901]
[1765723768348,0.67,130.89,130.86,8.32161901]
[1765723768543,0.67,130.89,130.87,7.64116851]
[1765723771247,0.67,130.89,130.86,8.32164295]
[1765723773319,0.67,130.89,130.85,19.10519072]
[1765723773320,8.31025361,130.89,130.85,8.31214703]
[1765723773523,8.31025361,130.89,130.84,7.64272137]
[1765723773751,0.72,130.88,130.84,8.31272137]
[1765723773953,0.72,130.88,130.85,7.64225979]
[1765723774158,7.64025361,130.89,130.85,7.64225979]
[1765723774159,7.64025361,130.89,130.85,8.31225979]
[1765723774456,0.72,130.88,130.85,8.31225979]
[1765723775530,8.36080082,130.88,130.85,0.67]
[1765723775947,8.36080082,130.88,130.85,8.31230651]
[1765723776956,0.72,130.87,130.84,8.31272072]
[1765723778053,8.36136865,130.87,130.81,32.82802329]
[1765723778254,16.72136865,130.87,130.82,8.31376917]
[1765723778755,0.72,130.86,130.83,0.67]
[1765723779052,14.22136865,130.87,130.83,0.67]
[1765723779664,33.32429521,130.87,130.82,7.64376917]
[1765723779833,33.32429521,130.87,130.82,8.31376917]
[1765723780950,7.80222379,130.86,130.82,8.31376917]
[1765723781454,0.16,130.85,130.82,8.31376917]
[1765723782564,0.16,130.85,130.8,9.03]
[1765723782736,0.16,130.85,130.8,0.67]
[1765723782936,0.16,130.85,130.81,0.67]
[1765723783569,0.16,130.85,130.81,8.31457986]
[1765723783867,0.16,130.85,130.81,0.67]
[1765723784165,16.00333685,130.84,130.8,7.6451273]
[1765723784373,16.00333685,130.84,130.8,8.3151273]
[1765723784560,16.16333685,130.84,130.8,8.3151273]
[1765723784979,16.16333685,130.84,130.8,7.6451273]
[1765723785180,16.16333685,130.84,130.8,8.3151273]
[1765723785364,16.16333685,130.84,130.81,0.67]
[1765723786278,8.36,130.84,130.81,8.31467416]
[1765723789587,8.36,130.84,130.79,19.11395902]
[1765723789765,8.36,130.84,130.81,0.67]
[1765723791072,8.36,130.84,130.81,8.31452795]
[1765723791787,16.00300621,130.84,130.81,0.67]
[1765723791983,16.16300621,130.84,130.81,0.67]
[1765723792375,16.16300621,130.84,130.81,8.31464816]
[1765723792775,16.16300621,130.84,130.8,7.64506098]
[1765723793078,16.00300621,130.84,130.8,8.31506098]
[1765723793383,16.00300621,130.84,130.81,0.67]
[1765723793581,8.36,130.84,130.81,0.67]
[1765723794794,8.36,130.84,130.81,8.31438765]
[1765723795096,8.38,130.86,130.81,8.31438765]
[1765723795259,8.38,130.86,130.82,0.67]
[1765723796087,8.38,130.86,130.83,7.64350684]
[1765723796600,8.38,130.86,130.84,0.66]
[1765723798300,8.38,130.86,130.84,8.30287925]
[1765723800803,8.38,130.86,130.84,0.66]
[1765723800972,8.38,130.86,130.82,0.28432314]
[1765723801179,8.38,130.86,130.83,0.66]
[1765723801978,8.38,130.86,130.84,7.64292265]
[1765723802477,0.16,130.85,130.8,0.66]
[1765723802677,8.96994492,130.85,130.79,8.30557796]
[1765723803093,0.16,130.84,130.79,0.66]
[1765723803269,8.38,130.83,130.79,0.66]
[1765723803901,8.54,130.83,130.79,0.66]
[1765723804074,0.16,130.82,130.78,7.64620557]
[1765723804398,0.16,130.82,130.78,8.30620557]
[1765723804806,0.16,130.82,130.77,7.64688201]
[1765723804974,0.16,130.82,130.76,8.30748059]
[1765723805575,8.96994492,130.82,130.76,8.30748059]
[1765723805978,7.64525993,130.8,130.76,8.30748059]
[1765723806208,16.02525993,130.8,130.76,8.30748059]
[1765723806514,16.18525993,130.8,130.76,8.30748059]
[1765723808009,16.02525993,130.8,130.76,8.30748059]
[1765723808211,0.16,130.79,130.75,8.40802118]
[1765723808721,0.16,130.79,130.76,0.66]
[1765723808889,0.16,130.79,130.75,0.1]
[1765723809199,0.16,130.79,130.75,0.76]
[1765723810187,7.80631774,130.79,130.75,0.76]
[1765723810388,8.38,130.8,130.75,8.40795871]
[1765723810590,19.27100845,130.82,130.75,8.40795871]
[1765723810591,120.7843103,130.82,130.75,8.40795871]
[1765723810827,120.7843103,130.82,130.76,0.94432314]
[1765723811320,120.7843103,130.82,130.77,0.66]
[1765723811710,0.16,130.81,130.75,8.40795871]
[1765723811912,104.6,130.8,130.75,0.1]
[1765723812095,8.38,130.79,130.75,0.1]
[1765723812299,7.64642911,130.78,130.75,0.76]
[1765723813018,7.80642911,130.78,130.75,0.76]
[1765723813222,7.64642911,130.78,130.75,0.76]
[1765723813421,7.80642911,130.78,130.75,0.76]
[1765723813720,7.64642911,130.78,130.75,0.76]
[1765723813926,7.80642911,130.78,130.75,0.76]
[1765723814627,0.16,130.77,130.75,0.1]
[1765723815000,8.38,130.76,130.75,0.1]
[1765723817035,16.18759865,130.76,130.75,0.1]
[1765723817734,16.02759865,130.76,130.75,0.1]
[1765723818227,16.18759865,130.76,130.75,0.1]
[1765723819603,24.99754357,130.76,130.75,0.1]
[1765723821435,25.28186671,130.76,130.75,1e-08]
[1765723821747,28.34547487,130.76,130.75,1e-08]
[1765723823932,25.28186671,130.76,130.75,1e-08]
[1765723824348,24.99754357,130.76,130.75,1e-08]
[1765723824645,8.38,130.76,130.75,0.66000001]
[1765723824838,16.02759865,130.76,130.75,0.66000001]
[1765723825220,16.02759865,130.76,130.75,1e-08]
[1765723825429,16.18759865,130.76,130.75,1e-08]
[1765723825838,8.38,130.76,130.75,1e-08]
[1765723826131,8.38,130.76,130.75,0.66000001]
[1765723826338,8.38,130.76,130.75,1e-08]
[1765723830544,16.18759865,130.76,130.75,1e-08]
[1765723831242,25.28186671,130.76,130.75,1e-08]
[1765723831444,38.32895791,130.76,130.75,1e-08]
[1765723833264,25.28186671,130.76,130.75,1e-08]
[1765723833466,22.14135926,130.73,130.72,1e-08]
[1765723833673,9.25426806,130.72,130.71,1e-08]
[1765723833871,9.25426806,130.72,130.62,7.65560081]
[1765723834059,9.25426806,130.72,130.64,0.68]
[1765723834060,13.0470912,130.69,130.64,0.68]
[1765723834266,8.38,130.68,130.64,0.68]
[1765723834458,8.54,130.68,130.64,0.68]
[1765723834652,7.65286599,130.67,130.64,0.68]
[1765723834855,8.38,130.66,130.62,0.68]
[1765723835063,13.0470912,130.62,130.56,0.68]
[1765723835373,8.38,130.61,130.57,0.68]
[1765723836674,21.4270912,130.66,130.59,0.28432314]
[1765723837068,8.38,130.66,130.6,0.68]
[1765723837872,8.54,130.66,130.6,0.68]
[1765723838374,8.80994492,130.65,130.6,0.68]
[1765723838673,26.79118187,130.64,130.6,0.68]
[1765723838876,8.38,130.63,130.6,0.68]
[1765723839244,0.16,130.62,130.58,0.68]
[1765723839445,8.96994492,130.62,130.58,0.68]
[1765723839853,0.16,130.61,130.55,7.65969587]
[1765723840053,8.80994492,130.62,130.57,0.68]
[1765723840054,8.38,130.6,130.57,0.68]
[1765723840370,8.38,130.6,130.55,0.68]
[1765723840680,8.54,130.6,130.55,0.68]
[1765723840863,7.65755417,130.59,130.55,0.68]
[1765723841569,16.03705453,130.6,130.55,8.33946871]
[1765723841871,8.38,130.6,130.55,8.33946871]
[1765723842178,16.03704848,130.6,130.56,0.68]
[1765723843174,16.03704848,130.6,130.56,8.33929561]
[1765723843377,16.03704848,130.6,130.56,0.68]
[1765723843677,16.03704848,130.6,130.57,0.68]
[1765723843843,8.38,130.6,130.57,0.68]
[1765723844047,16.03699079,130.6,130.57,0.68]
[1765723844260,16.19699079,130.6,130.55,0.68]
[1765723844446,16.03699079,130.6,130.55,0.68]
[1765723845257,35.17941039,130.6,130.55,0.68]
[1765723845470,35.33941039,130.6,130.55,0.68]
[1765723846258,8.96994492,130.59,130.55,0.68]
[1765723846465,0.28432314,130.58,130.54,9.43463]
[1765723846688,8.80994492,130.55,130.54,9.43463]
[1765723847185,16.62984534,130.55,130.54,9.43463]
[1765723848751,7.65990042,130.55,130.54,9.43463]
[1765723848950,0.28432314,130.58,130.54,10.11463]
[1765723848951,13.0470912,130.58,130.54,10.11463]
[1765723849171,8.80994492,130.56,130.54,9.43463]
[1765723849569,8.96994492,130.56,130.54,9.43463]
[1765723850473,21.85703612,130.55,130.54,9.43463]
[1765723850875,16.0389216,130.57,130.54,10.11463]
[1765723851077,29.0860128,130.57,130.54,10.11463]
[1765723851382,16.0389216,130.57,130.55,0.68]
[1765723851575,0.5,130.56,130.55,0.68]
[1765723851972,16.0389216,130.57,130.55,0.68]
[1765723857666,13.0470912,130.56,130.54,9.43463]
[1765723857861,8.38,130.55,130.54,9.43463]
[1765723858055,16.03990042,130.55,130.54,9.43463]
[1765723858478,16.03990042,130.55,130.54,10.10463]
[1765723858679,8.38,130.55,130.54,10.10463]
[1765723859175,8.38,130.55,130.54,17.7651172]
[1765723859488,7.65863831,130.58,130.54,17.7651172]
[1765723859489,8.38,130.58,130.54,36.91633521]
[1765723859698,8.38,130.58,130.55,0.67]
[1765723859880,7.65644846,130.61,130.55,0.95432314]
[1765723860082,8.38,130.6,130.56,7.65931372]
[1765723860286,8.38,130.6,130.56,8.32931372]
[1765723860480,16.03699428,130.6,130.57,0.67]
[1765723861003,35.17941388,130.6,130.57,0.67]
[1765723861307,35.17941388,130.6,130.56,0.67]
[1765723861308,35.83941388,130.6,130.56,0.67]
[1765723861483,35.17941388,130.6,130.55,0.67]
[1765723861809,9.46994492,130.59,130.55,0.67]
[1765723862174,7.6581406,130.58,130.55,0.67]
[1765723862401,8.38,130.57,130.55,0.67]
[1765723863324,8.38,130.57,130.55,8.32967694]
[1765723863792,8.38,130.57,130.56,0.67]
[1765723865916,8.38,130.59,130.56,8.32931372]
[1765723866295,8.38,130.59,130.57,0.67]
[1765723866827,8.38,130.59,130.57,8.32850412]
[1765723867200,7.6559438,130.62,130.57,8.32850412]
[1765723867201,8.38,130.61,130.58,0.67]
[1765723868094,16.03646677,130.61,130.58,0.67]
[1765723868891,16.03646677,130.61,130.58,8.32810609]
[1765723869092,16.69646677,130.61,130.58,0.67]
[1765723869339,16.69646677,130.61,130.57,0.67]
[1765723869531,35.83742075,130.61,130.57,0.67]
[1765723870229,16.03646677,130.61,130.57,0.67]
[1765723870427,16.69646677,130.61,130.57,0.67]
[1765723870810,35.83742075,130.61,130.57,0.67]
[1765723871422,16.03646677,130.61,130.57,8.32848761]
[1765723871601,8.38,130.61,130.58,0.67]
[1765723871794,16.0366245,130.61,130.58,0.67]
[1765723872129,16.6966245,130.61,130.54,17.09486675]
[1765723872300,16.6966245,130.61,130.56,0.67]
[1765723872301,0.66,130.6,130.56,0.67]
[1765723873401,48.22466968,130.61,130.56,0.67]
[1765723873630,8.80994492,130.59,130.54,10.10463]
[1765723873934,8.38,130.58,130.55,0.67]
[1765723874139,7.65872711,130.57,130.55,0.67]
[1765723875006,16.03871232,130.58,130.55,0.67]
[1765723880148,21.36365598,130.61,130.55,0.67]
[1765723880313,8.38,130.59,130.55,0.67]
[1765723880732,9.04,130.59,130.55,0.67]
[1765723881243,8.80994492,130.57,130.54,9.43463]
[1765723881412,8.80994492,130.55,130.54,9.43463]
[1765723882040,9.46994492,130.55,130.54,9.43463]
[1765723882246,22.51703612,130.55,130.54,9.43463]
[1765723882418,30.17693654,130.55,130.54,9.43463]
[1765723882742,20.70699162,130.55,130.54,9.43463]
[1765723882919,16.03953463,130.56,130.54,9.43463]
[1765723883250,0.66,130.55,130.54,9.43463]
[1765723883446,13.7070912,130.55,130.54,9.43463]
[1765723883820,22.80135926,130.55,130.54,9.43463]
[1765723884341,0.28432314,130.54,130.47,0.67]
[1765723884646,0.28432314,130.54,130.48,0.67]
[1765723884647,16.04107408,130.53,130.48,0.67]
[1765723885176,22.80135926,130.52,130.46,0.67]
[1765723885341,13.0470912,130.52,130.49,0.67]
[1765723885731,0.67,130.51,130.47,0.67]
[1765723885923,8.4,130.5,130.47,0.67]
[1765723886570,0.71,130.49,130.45,0.66]
[1765723886826,113.0,130.5,130.45,0.66]
[1765723887225,113.0,130.5,130.45,8.32537467]
[1765723887523,113.0,130.5,130.46,7.66509085]
[1765723887926,113.0,130.5,130.47,7.66457317]
[1765723888333,13.0470912,130.52,130.47,7.66457317]
[1765723888529,8.4,130.51,130.46,0.28432314]
[1765723888943,8.4,130.51,130.46,9.09426806]
[1765723889369,8.4,130.51,130.47,0.66]
[1765723890530,8.4,130.51,130.48,26.82403432]
[1765723890734,104.6,130.54,130.48,26.82403432]
[1765723890946,8.4,130.53,130.49,0.66]
[1765723891361,8.4,130.53,130.49,0.94432314]
[1765723891576,19.14011084,130.62,130.51,0.28432314]
[1765723891764,9.11,130.61,130.53,0.28432314]
[1765723892074,8.4,130.6,130.53,0.28432314]
[1765723892230,8.4,130.6,130.56,0.28432314]
[1765723892429,8.4,130.6,130.56,9.09426806]
[1765723892638,8.4,130.6,130.57,27.4655449]
[1765723892961,13.0470912,130.66,130.58,9.09426806]
[1765723893135,13.0470912,130.66,130.58,9.75426806]
[1765723893136,9.11,130.65,130.58,9.75426806]
[1765723893330,9.11,130.65,130.59,0.66]
[1765723893532,8.4,130.65,130.59,0.66]
[1765723893730,0.71,130.64,130.59,0.66]
[1765723894632,0.71,130.64,130.59,8.31719477]
[1765723894964,8.4,130.65,130.59,8.31719477]
[1765723895151,8.4,130.65,130.6,0.66]
[1765723895326,9.11,130.65,130.6,0.66]
[1765723895730,9.11,130.65,130.6,8.31643615]
[1765723896148,9.11,130.65,130.61,0.66]
[1765723896149,8.4,130.65,130.61,0.66]
[1765723897355,8.4,130.65,130.62,7.65579543]
[1765723897674,8.4,130.65,130.63,0.66]
[1765723898647,21.4270912,130.68,130.63,0.66]
[1765723898848,22.1370912,130.68,130.63,0.66]
[1765723899047,22.1370912,130.68,130.64,7.65462339]
[1765723899254,0.71,130.67,130.62,0.66]
[1765723902054,8.36308844,130.67,130.62,0.66]
[1765723902780,0.71,130.66,130.62,0.66]
[1765723903782,21.4270912,130.68,130.62,8.31575161]
[1765723904195,21.4270912,130.68,130.63,0.66]
[1765723904382,22.1370912,130.68,130.63,0.66]
[1765723905394,0.71,130.67,130.63,0.66]
[1765723906002,0.71,130.67,130.6,19.42607467]
[1765723906201,8.36290538,130.67,130.61,0.66]
[1765723906502,0.71,130.67,130.62,7.65566831]
[1765723906703,21.4270912,130.68,130.63,7.65486518]
[1765723907138,8.38,130.68,130.64,0.94432314]
[1765723907276,8.38,130.68,130.65,0.66]
[1765723907480,0.2,130.73,130.67,0.28432314]
[1765723907907,0.2,130.73,130.68,0.66]
[1765723909403,0.2,130.73,130.69,26.78093197]
[1765723909736,0.2,130.73,130.7,9.09426806]
[1765723909907,0.2,130.73,130.7,9.75426806]
[1765723910110,0.2,130.73,130.71,0.66]
[1765723910639,0.2,130.73,130.72,9.09426806]
[1765723911128,0.2,130.73,130.72,22.80135926]
[1765723911516,0.2,130.73,130.72,30.45129806]
[1765723911898,0.2,130.73,130.72,21.64135314]
[1765723913303,0.2,130.73,130.72,30.45129806]
[1765723913712,0.2,130.73,130.72,21.64135314]
[1765723914918,0.2,130.73,130.71,7.65033084]
[1765723915134,0.2,130.73,130.7,7.65101475]
[1765723915135,0.91,130.73,130.7,7.65101475]
[1765723915339,0.2,130.73,130.71,0.66]
[1765723915524,0.2,130.73,130.72,7.6499388]
[1765723915712,0.2,130.73,130.72,8.3099388]
[1765723916440,0.2,130.73,130.72,8.59426194]
[1765723917020,0.2,130.73,130.72,17.40420686]
[1765723917406,1e-08,130.73,130.72,17.40420686]
[1765723919847,1e-08,130.73,130.72,8.59426194]
[1765723920445,1e-08,130.73,130.72,7.6499388]
[1765723921247,1e-08,130.73,130.71,7.65028615]
[1765723922530,0.72000001,130.73,130.71,7.65028615]
[1765723923845,0.72000001,130.73,130.7,7.65110941]
[1765723924221,0.72000001,130.73,130.7,8.32110941]
[1765723924421,1e-08,130.73,130.71,0.67]
[1765723925747,1e-08,130.73,130.71,0.95432314]
[1765723925927,1e-08,130.73,130.72,7.93426194]
[1765723926131,1e-08,130.73,130.72,8.60426194]
[1765723926914,0.72000001,130.73,130.72,7.6499388]
[1765723927121,1e-08,130.73,130.72,7.6499388]
[1765723928139,1e-08,130.73,130.71,7.65052406]
[1765723930426,0.72000001,130.73,130.71,7.65052406]
[1765723931748,0.72000001,130.73,130.7,7.6510373]
[1765723932345,0.72000001,130.73,130.68,20.08434733]
[1765723932346,0.72000001,130.73,130.69,7.65169485]
[1765723932755,1e-08,130.73,130.7,0.67]
[1765723932938,1e-08,130.73,130.69,26.78093197]
[1765723932939,0.72000001,130.73,130.69,27.45093197]
[1765723933139,0.72000001,130.73,130.68,7.6522242]
[1765723933433,8.36942851,130.73,130.67,7.65261215]
[1765723933638,0.72,130.72,130.67,7.65261215]
[1765723933841,0.72,130.72,130.66,7.65329993]
[1765723934019,13.7670912,130.72,130.66,7.65329993]
[1765723934225,21.41743864,130.72,130.66,7.65329993]
[1765723934423,0.72,130.71,130.66,7.65329993]
[1765723935044,0.72,130.71,130.67,0.67]
[1765723935649,0.72,130.71,130.66,26.78692919]
[1765723935854,0.72,130.71,130.66,27.45692919]
[1765723936359,0.72,130.71,130.64,26.79031312]
[1765723936360,8.3707021,130.71,130.64,26.79031312]
[1765723936834,8.3707021,130.71,130.63,7.65500069]
[1765723936835,0.72,130.7,130.63,7.65500069]
[1765723937170,1.00432314,130.7,130.63,7.65516588]
[1765723937651,13.0470912,130.68,130.63,7.65516588]
[1765723937850,0.72,130.69,130.63,8.32516588]
[1765723938153,35.15701225,130.71,130.63,8.32516588]
[1765723938154,0.72,130.68,130.63,8.32516588]
[1765723938451,0.72,130.68,130.64,0.67]
[1765723938841,0.72,130.7,130.64,0.95432314]
[1765723939350,0.72,130.7,130.65,0.67]
[1765723939570,0.72,130.7,130.63,27.4631893]
[1765723939869,8.37134325,130.7,130.63,27.4631893]
[1765723940019,13.0470912,130.68,130.63,7.65516588]
[1765723940424,0.72,130.67,130.63,0.67]
[1765723940721,0.72,130.69,130.64,0.67]
[1765723941483,112.98,130.71,130.64,0.67]
[1765723941484,113.7,130.71,130.64,0.67]
[1765723942442,113.7,130.71,130.65,26.78913126]
[1765723942855,1e-08,130.73,130.66,0.95432314]
[1765723943037,0.72,130.72,130.66,0.95432314]
[1765723943245,0.72,130.72,130.67,0.67]